Workbook

Sheet Mittelhilfstabelle
A2: Stunde | B2: Wind | C2: Luftfeuchtigkeit | D2: Luftdruck | E2: Taupunkttemperatur | F2: Bewölkung | H2: Stunde | I2: Wind | J2: Luftfeuchtigkeit | K2: Luftdruck | L2: Taupunkttemperatur | M2: Bewölkung
A3: 00 | B3: 0 | C3: 93 | D3: 1016.8 | E3: -0.3 | F3: 8 | H3: 00 | I3: 2 | J3: 92 | K3: 1009.6 | L3: 6.7 | M3: 8
A4: 01 | B4: 0 | C4: 93 | D4: 1016.1 | E4: -0.4 | F4: 8 | H4: 01 | I4: 2 | J4: 91 | K4: 1009.1 | L4: 6.8 | M4: 8
A5: 02 | B5: 1 | C5: 86 | D5: 1015.1 | E5: 1.1 | F5: 7 | H5: 02 | I5: 2 | J5: 93 | K5: 1009 | L5: 7.2 | M5: 8
A6: 03 | B6: 1 | C6: 78 | D6: 1014.1 | E6: 0.6 | F6: 6 | H6: 03 | I6: 2 | J6: 92 | K6: 1008.8 | L6: 7.3 | M6: 8
A7: 04 | B7: 1 | C7: 74 | D7: 1013.4 | E7: 0.3 | F7: 6 | H7: 04 | I7: 2 | J7: 92 | K7: 1008.5 | L7: 7.6 | M7: 8
A8: 05 | B8: 1 | C8: 80 | D8: 1012 | E8: 1.2 | F8: 7 | H8: 05 | I8: 1 | J8: 90 | K8: 1008.9 | L8: 7.8 | M8: 8
A9: 06 | B9: 1 | C9: 90 | D9: 1011.2 | E9: 2 | F9: 8 | H9: 06 | I9: 1 | J9: 87 | K9: 1008.4 | L9: 7.6 | M9: 7
A10: 07 | B10: 1 | C10: 91 | D10: 1010.4 | E10: 1.9 | F10: 8 | H10: 07 | I10: 2 | J10: 83 | K10: 1008.2 | L10: 7.4 | M10: 7
A11: 08 | B11: 2 | C11: 86 | D11: 1009.7 | E11: 3.1 | F11: 7 | H11: 08 | I11: 2 | J11: 81 | K11: 1008.2 | L11: 7.5 | M11: 7
A12: 09 | B12: 2 | C12: 82 | D12: 1009.9 | E12: 3 | F12: 7 | H12: 09 | I12: 2 | J12: 79 | K12: 1007.1 | L12: 7.7 | M12: 6
A13: 10 | B13: 2 | C13: 85 | D13: 1010.4 | E13: 3.4 | F13: 7 | H13: 10 | I13: 2 | J13: 78 | K13: 1007 | L13: 8.1 | M13: 6
A14: 11 | B14: 2 | C14: 81 | D14: 1009.8 | E14: 3.5 | F14: 7 | H14: 11 | I14: 2 | J14: 74 | K14: 1006.8 | L14: 8.1 | M14: 6
A15: 12 | B15: 2 | C15: 79 | D15: 1009.8 | E15: 3.7 | F15: 6 | H15: 12 | I15: 2 | J15: 75 | K15: 1005.8 | L15: 8.7 | M15: 6
A16: 13 | B16: 2 | C16: 80 | D16: 1009.4 | E16: 4 | F16: 7 | H16: 13 | I16: 2 | J16: 72 | K16: 1005.7 | L16: 8.8 | M16: 6
A17: 14 | B17: 2 | C17: 82 | D17: 1009.4 | E17: 4.4 | F17: 7 | H17: 14 | I17: 2 | J17: 74 | K17: 1004.4 | L17: 8.9 | M17: 6
A18: 15 | B18: 2 | C18: 83 | D18: 1009.4 | E18: 4.6 | F18: 7 | H18: 15 | I18: 2 | J18: 76 | K18: 1003.5 | L18: 9.5 | M18: 6
A19: 16 | B19: 2 | C19: 86 | D19: 1010.1 | E19: 4.8 | F19: 7 | H19: 16 | I19: 2 | J19: 74 | K19: 1003.4 | L19: 9.3 | M19: 6
A20: 17 | B20: 2 | C20: 88 | D20: 1010.1 | E20: 5.1 | F20: 7 | H20: 17 | I20: 2 | J20: 75 | K20: 1003 | L20: 9.2 | M20: 6
A21: 18 | B21: 2 | C21: 88 | D21: 1010.4 | E21: 5.1 | F21: 7 | H21: 18 | I21: 2 | J21: 80 | K21: 1002.9 | L21: 9.6 | M21: 7
A22: 19 | B22: 2 | C22: 88 | D22: 1011 | E22: 5.5 | F22: 7 | H22: 19 | I22: 2 | J22: 86 | K22: 1004.3 | L22: 7.2 | M22: 7
A23: 20 | B23: 2 | C23: 88 | D23: 1010.8 | E23: 5.5 | F23: 7 | H23: 20 | I23: 2 | J23: 89 | K23: 1005.1 | L23: 7.4 | M23: 7
A24: 21 | B24: 2 | C24: 89 | D24: 1010.5 | E24: 5.9 | F24: 7 | H24: 21 | I24: 2 | J24: 86 | K24: 1005.2 | L24: 6.8 | M24: 7
A25: 22 | B25: 2 | C25: 90 | D25: 1010.4 | E25: 6.2 | F25: 8 | H25: 22 | I25: 2 | J25: 80 | K25: 1006.9 | L25: 4.2 | M25: 7
A26: 23 | B26: 2 | C26: 90 | D26: 1010 | E26: 6.4 | F26: 8 | H26: 23 | I26: 2 | J26: 83 | K26: 1007.9 | L26: 4.3 | M26: 7
A27: Mittel | B27: =ROUND(AVERAGE(B3:B26),1) -> 1.6 | C27: =ROUND(AVERAGE(C3:C26),1) -> 85.4 | D27: =ROUND(AVERAGE(D3:D26),1) -> 1011.3 | E27: =AVERAGE(E3:E26) -> 3.358333333 | F27: =ROUND(AVERAGE(F3:F26),1) -> 7.1 | H27: Mittel | I27: =ROUND(AVERAGE(I3:I26),1) -> 1.9 | J27: =ROUND(AVERAGE(J3:J26),1) -> 82.6 | K27: =ROUND(AVERAGE(K3:K26),1) -> 1006.6 | L27: =AVERAGE(L3:L26) -> 7.654166667 | M27: =ROUND(AVERAGE(M3:M26),1) -> 6.9
E29: 2013-01-29 | L29: 2013-01-30
A32: Stunde | B32: Wind | C32: Luftfeuchtigkeit | D32: Luftdruck | E32: Taupunkttemperatur | F32: Bewölkung | H32: Stunde | I32: Wind | J32: Luftfeuchtigkeit | K32: Luftdruck | L32: Taupunkttemperatur | M32: Bewölkung
A33: 00 | B33: 2 | C33: 81 | D33: 1008.4 | E33: 4.2 | F33: 7 | H33: 00 | I33: 0 | J33: 96 | K33: 1007.5 | L33: -1.1 | M33: 8
A34: 01 | B34: 2 | C34: 79 | D34: 1008.8 | E34: 3.8 | F34: 6 | H34: 01 | I34: 0 | J34: 96 | K34: 1007.8 | L34: -1.2 | M34: 8
A35: 02 | B35: 2 | C35: 73 | D35: 1009.2 | E35: 2.3 | F35: 6 | H35: 02 | I35: 1 | J35: 97 | K35: 1008.4 | L35: -1 | M35: 8
A36: 03 | B36: 2 | C36: 72 | D36: 1009.7 | E36: 2.1 | F36: 6 | H36: 03 | I36: 1 | J36: 97 | K36: 1008.6 | L36: -1 | M36: 8
A37: 04 | B37: 2 | C37: 70 | D37: 1010.3 | E37: 1.8 | F37: 6 | H37: 04 | I37: 0 | J37: 97 | K37: 1008.8 | L37: -0.8 | M37: 8
A38: 05 | B38: 2 | C38: 71 | D38: 1010.7 | E38: 1.8 | F38: 6 | H38: 05 | I38: 0 | J38: 97 | K38: 1009.9 | L38: -0.8 | M38: 8
A39: 06 | B39: 3 | C39: 70 | D39: 1010.6 | E39: 1.5 | F39: 6 | H39: 06 | I39: 0 | J39: 98 | K39: 1010.4 | L39: -0.6 | M39: 8
A40: 07 | B40: 2 | C40: 73 | D40: 1011.2 | E40: 1.5 | F40: 6 | H40: 07 | I40: 0 | J40: 96 | K40: 1011.3 | L40: -1.3 | M40: 8
A41: 08 | B41: 2 | C41: 71 | D41: 1011.8 | E41: 1.3 | F41: 6 | H41: 08 | I41: 0 | J41: 97 | K41: 1011.9 | L41: -1.6 | M41: 8
A42: 09 | B42: 2 | C42: 71 | D42: 1012.1 | E42: 1.4 | F42: 6 | H42: 09 | I42: 1 | J42: 98 | K42: 1013.1 | L42: -0.4 | M42: 8
A43: 10 | B43: 2 | C43: 70 | D43: 1012.3 | E43: 1.7 | F43: 6 | H43: 10 | I43: 0 | J43: 97 | K43: 1013.5 | L43: 0 | M43: 8
A44: 11 | B44: 2 | C44: 63 | D44: 1011.4 | E44: 1.3 | F44: 6 | H44: 11 | I44: 0 | J44: 92 | K44: 1014.4 | L44: 0.1 | M44: 8
A45: 12 | B45: 2 | C45: 65 | D45: 1010.9 | E45: 1.5 | F45: 6 | H45: 12 | I45: 1 | J45: 84 | K45: 1014.9 | L45: 1.9 | M45: 7
A46: 13 | B46: 2 | C46: 61 | D46: 1009.6 | E46: 1.1 | F46: 6 | H46: 13 | I46: 1 | J46: 79 | K46: 1015.5 | L46: 1.6 | M46: 6
A47: 14 | B47: 2 | C47: 49 | D47: 1009 | E47: -1.2 | F47: 6 | H47: 14 | I47: 1 | J47: 79 | K47: 1015.8 | L47: 1.6 | M47: 6
A48: 15 | B48: 2 | C48: 54 | D48: 1008.2 | E48: -0.2 | F48: 6 | H48: 15 | I48: 1 | J48: 80 | K48: 1015.8 | L48: 1.5 | M48: 7
A49: 16 | B49: 2 | C49: 56 | D49: 1007.3 | E49: -0.2 | F49: 6 | H49: 16 | I49: 1 | J49: 80 | K49: 1016.6 | L49: 1.2 | M49: 7
A50: 17 | B50: 2 | C50: 85 | D50: 1007.4 | E50: 3 | F50: 7 | H50: 17 | I50: 0 | J50: 85 | K50: 1016.9 | L50: 0.6 | M50: 7
A51: 18 | B51: 2 | C51: 84 | D51: 1006.1 | E51: 3.1 | F51: 7 | H51: 18 | I51: 0 | J51: 86 | K51: 1017.1 | L51: 0.2 | M51: 7
A52: 19 | B52: 2 | C52: 74 | D52: 1006.2 | E52: 2.5 | F52: 6 | H52: 19 | I52: 0 | J52: 88 | K52: 1017.4 | L52: -0.2 | M52: 7
A53: 20 | B53: 2 | C53: 76 | D53: 1006.1 | E53: 2.5 | F53: 6 | H53: 20 | I53: 0 | J53: 89 | K53: 1017.6 | L53: -0.4 | M53: 7
A54: 21 | B54: 2 | C54: 74 | D54: 1006.2 | E54: 2.3 | F54: 6 | H54: 21 | I54: 0 | J54: 92 | K54: 1017.1 | L54: -2.4 | M54: 8
A55: 22 | B55: 2 | C55: 94 | D55: 1008 | E55: 1.6 | F55: 8 | H55: 22 | I55: 1 | J55: 91 | K55: 1016.8 | L55: -1.8 | M55: 8
A56: 23 | B56: 1 | C56: 93 | D56: 1008.2 | E56: 1.6 | F56: 8 | H56: 23 | I56: 0 | J56: 94 | K56: 1016.9 | L56: -1.3 | M56: 8
A57: Mittel | B57: =ROUND(AVERAGE(B33:B56),1) -> 2 | C57: =ROUND(AVERAGE(C33:C56),1) -> 72 | D57: =ROUND(AVERAGE(D33:D56),1) -> 1009.2 | E57: =AVERAGE(E33:E56) -> 1.7625 | F57: =ROUND(AVERAGE(F33:F56),1) -> 6.3 | H57: Mittel | I57: =ROUND(AVERAGE(I33:I56),1) -> 0.4 | J57: =ROUND(AVERAGE(J33:J56),1) -> 91 | K57: =ROUND(AVERAGE(K33:K56),1) -> 1013.5 | L57: =AVERAGE(L33:L56) -> -0.3 | M57: =ROUND(AVERAGE(M33:M56),1) -> 7.5
E59: 2013-01-31 | L59: 2013-01-28

Sheet Kurztab.
A2: Wetterwarte: Köttewitz | L2: Monat: | M2: Januar | Y2: Jahr: | Z2: 2013
A4: Dat. | B4: TTT | C4: TxTx | D4: TnTn | E4: Tg | F4: Umin. | G4: UU | H4: NN | I4: RRRR | J4: Art | L4: sss | M4: PPPP | N4: eee | O4: fff | R4: Tage mit | V4: fk
J5: * | O5: Bft | P5: SS | Q5: Art ( D ) | R5: NE | S5: Ge | T5: Bf6 | U5: Bf8 | V5: Bft
A6: 01. | B6: 4.6 | C6: 7.5 | D6: 1.8 | E6: 0 | F6: 67 | G6: 78 | H6: 6.3 | I6: 0 | L6: 0 | M6: 1008.7 | N6: 0.9 | O6: 0.8 | P6: 0 | V6: 4 | AA6: max >=30,0°C | AB6: max >=25,0°C | AC6: max <0,0°C | AE6: RR >=0,1 mm | AF6: RR >=1,0 mm | AG6: RR >=3,0 mm | AH6: RR >=10,0 mm
A7: 02. | B7: 4.3 | C7: 7.2 | D7: 2.3 | E7: 0.6 | F7: 73 | G7: 82 | H7: 6.2 | I7: 1.6 | J7: R | L7: 0.5 | M7: 1020.2 | N7: 1.5 | O7: 2 | P7: 0 | R7: 1 | V7: 5 | AA7: =COUNTIF(C6:C15,">=30") -> 0 | AB7: =COUNTIF(C6:C15,">=25") -> 0 | AC7: =COUNTIF(C6:C15,"<0") -> 0 | AE7: =COUNTIF(I6:I15,">=0,1") -> 9 | AF7: =COUNTIF(I6:I15,">=1") -> 9 | AG7: =COUNTIF(I6:I15,">=3") -> 7 | AH7: =COUNTIF(I6:I15,">=10") -> 1
A8: 03. | B8: 6.6 | C8: 9.2 | D8: 4 | E8: 2.8 | F8: 70 | G8: 83 | H8: 6.8 | I8: 4.4 | J8: R | L8: 0 | M8: 1026.3 | N8: 3.7 | O8: 2 | P8: 0 | R8: 1 | V8: 5 | AA8: =COUNTIF(C18:C27,">=30") -> 0 | AB8: =COUNTIF(C18:C27,">=25") -> 0 | AC8: =COUNTIF(C18:C27,"<0") -> 9 | AE8: =COUNTIF(I18:I27,">=0,1") -> 3 | AF8: =COUNTIF(I18:I27,">=1") -> 0 | AG8: =COUNTIF(I18:I27,">=3") -> 0 | AH8: =COUNTIF(I18:I27,">=10") -> 0
A9: 04. | B9: 8.6 | C9: 9.6 | D9: 7.4 | E9: 6.7 | F9: 81 | G9: 89 | H9: 7.5 | I9: 13.2 | J9: R | L9: 0.5 | M9: 1027 | N9: 6.8 | O9: 1 | P9: 0 | R9: 1 | V9: 5 | AA9: =COUNTIF(C30:C40,">=30") -> 0 | AB9: =COUNTIF(C30:C40,">=25") -> 0 | AC9: =COUNTIF(C30:C40,"<0") -> 6 | AE9: =COUNTIF(I30:I40,">=0,1") -> 7 | AF9: =COUNTIF(I30:I40,">=1") -> 5 | AG9: =COUNTIF(I30:I40,">=3") -> 4 | AH9: =COUNTIF(I30:I40,">=10") -> 1
A10: 05. | B10: 6.7 | C10: 8.4 | D10: 5.1 | E10: 5 | F10: 94 | G10: 96 | H10: 8 | I10: 6.4 | J10: R | L10: 0 | M10: 1026 | N10: 6.2 | O10: 1 | P10: 0 | R10: 1 | V10: 4
A11: 06. | B11: 5.9 | C11: 6.8 | D11: 5 | E11: 5 | F11: 94 | G11: 97 | H11: 8 | I11: 9.8 | J11: R | L11: 0 | M11: 1024.1 | N11: 5.5 | O11: 1 | P11: 0 | R11: 1 | V11: 3 | AA11: min <0,0°C | AB11: min <0-10,0°C | AE11: rel.Lf. 14h >=70% | AG11: rel.Lf. 14h <=40%
A12: 07. | B12: 4.8 | C12: 6.8 | D12: 3.8 | E12: 3.9 | F12: 94 | G12: 97 | H12: 8 | I12: 4.8 | J12: R | L12: 0 | M12: 1026.6 | N12: 4.5 | O12: 0 | P12: 0 | R12: 1 | V12: 3 | AA12: =COUNTIF(D6:D15,"<0") -> 0 | AB12: =COUNTIF(D6:D15,"<=-10") -> 0 | AE12: =COUNTIF(F6:F15,">=70") -> 9 | AG12: =COUNTIF(F6:F15,"<=40") -> 0
A13: 08. | B13: 5.1 | C13: 6 | D13: 3.9 | E13: 3.3 | F13: 96 | G13: 98 | H13: 8 | I13: 6 | J13: R | L13: 0 | M13: 1023.7 | N13: 4.7 | O13: 1 | P13: 0 | R13: 1 | V13: 3 | AA13: =COUNTIF(D18:D27,"<0") -> 10 | AB13: =COUNTIF(D18:D27,"<=-10") -> 0 | AE13: =COUNTIF(F18:F27,">=70") -> 10 | AG13: =COUNTIF(F18:F27,"<=40") -> 0
A14: 09. | B14: 5.7 | C14: 7 | D14: 4.6 | E14: 3.9 | F14: 90 | G14: 96 | H14: 8 | I14: 3.8 | J14: R | L14: 0 | M14: 1018.9 | N14: 5.2 | O14: 1 | P14: 0 | R14: 1 | V14: 3 | AA14: =COUNTIF(D30:D40,"<0") -> 8 | AB14: =COUNTIF(D30:D40,"<=-10") -> 2 | AE14: =COUNTIF(F30:F40,">=70") -> 10 | AG14: =COUNTIF(F30:F40,"<=40") -> 0
A15: 10. | B15: 3.3 | C15: 5 | D15: 0.2 | E15: 0 | F15: 79 | G15: 89 | H15: 7.6 | I15: 2.6 | J15: R | L15: 1 | M15: 1008.6 | N15: 1.8 | O15: 1 | P15: 0 | R15: 1 | V15: 5
A16: Su | B16: =SUM(B6:B15) -> 55.6 | C16: =SUM(C6:C15) -> 73.5 | D16: =SUM(D6:D15) -> 38.1 | E16: =SUM(E6:E15) -> 31.2 | F16: XXX | G16: =SUM(G6:G15) -> 905 | H16: =SUM(H6:H15) -> 74.4 | I16: =SUM(I6:I15) -> 52.6 | J16: =SUM(K6:K15) -> 0 | L16: =SUM(L6:L15) -> 2 | M16: =SUM(M6:M15) -> 10210.1 | N16: =SUM(N6:N15) -> 40.8 | O16: XXX | P16: =COUNT(P6:P15) -> 10 | Q16: X | R16: =SUM(R6:R15) -> 9 | S16: =SUM(S6:S15) -> 0 | T16: =SUM(T6:T15) -> 0 | U16: =SUM(U6:U15) -> 0 | V16: XXX | AA16: ohne Sonne | AB16: Son. 0,1-0,9 | AC16: Son. >=10,0 | AE16: Sch. >=1 cm | AF16: Sch. >=3 cm | AG16: Sch. >=10 cm
A17: Mi | B17: =SUM(B16/10) -> 5.56 | C17: =AVERAGE(C16/10) -> 7.35 | D17: =AVERAGE(D16/10) -> 3.81 | E17: =E16/10 -> 3.12 | F17: XXX | G17: =AVERAGE(G16/10) -> 90.5 | H17: =AVERAGE(H16/10) -> 7.44 | I17: XXXXX | J17: XX | L17: XXXX | M17: =AVERAGE(M16/10) -> 1021.01 | N17: =AVERAGE(N16/10) -> 4.08 | O17: XXX | P17: XXX | Q17: X | R17: XX | S17: XX | T17: XX | U17: XX | V17: XXX | AA17: =COUNTIF(L6:L15,".") -> 0 | AB17: =COUNTIF(L6:L15,"<1") -> 9 | AC17: =COUNTIF(L6:L15,">=10") -> 0 | AE17: =COUNTIF(P6:P15,">=1") -> 0 | AF17: =COUNTIF(P6:P15,">=3") -> 0 | AG17: =COUNTIF(P6:P15,">=10") -> 0
A18: 11. | B18: -1.6 | C18: 0.2 | D18: -2.3 | E18: -3.4 | F18: 85 | G18: 91 | H18: 7.6 | I18: 0.3 | J18: * | L18: 0 | M18: 1012.7 | N18: -2.7 | O18: 1 | P18: 4 | Q18: D | R18: 1 | V18: 3 | AA18: =COUNTIF(L18:L27,".") -> 0 | AB18: =COUNTIF(L18:L27,"<1") -> 9 | AC18: =COUNTIF(L18:L27,">=10") -> 0 | AE18: =COUNTIF(P18:P27,">=1") -> 10 | AF18: =COUNTIF(P18:P27,">=3") -> 10 | AG18: =COUNTIF(P18:P27,">=10") -> 0
A19: 12. | B19: -2.3 | C19: -1.4 | D19: -3.5 | E19: -5 | F19: 79 | G19: 87 | H19: 7.3 | I19: 0.6 | J19: * | L19: 0 | M19: 1018.3 | N19: -4.2 | O19: 1 | P19: 5 | Q19: * | R19: 1 | V19: 3 | AA19: =COUNTIF(L30:L40,".") -> 0 | AB19: =COUNTIF(L30:L40,"<1") -> 9 | AC19: =COUNTIF(L30:L40,">=10") -> 0 | AE19: =COUNTIF(P30:P40,">=1") -> 9 | AF19: =COUNTIF(P30:P40,">=3") -> 8 | AG19: =COUNTIF(P30:P40,">=10") -> 0
A20: 13. | B20: -4.2 | C20: -2.3 | D20: -5.9 | E20: -8.3 | F20: 82 | G20: 90 | H20: 7.6 | I20: 0 | L20: 2 | M20: 1019.8 | N20: -5.5 | O20: 1 | P20: 5 | Q20: * | V20: 2
A21: 14. | B21: -3.5 | C21: -1.6 | D21: -6.8 | E21: -8.4 | F21: 88 | G21: 92 | H21: 7.9 | I21: 0 | L21: 0 | M21: 1015.9 | N21: -4.7 | O21: 0 | P21: 5 | Q21: * | V21: 2 | AA21: Max TT | AB21: Max TxTx | AC21: Min TgTg | AE21: Max RR
A22: 15. | B22: -3.7 | C22: -1.7 | D22: -7.2 | E22: -9.5 | F22: 87 | G22: 91 | H22: 7.9 | I22: 0 | L22: 0 | M22: 1011 | N22: -5 | O22: 0 | P22: 5 | Q22: * | V22: 3 | AA22: =MAX(B6:B15,B18:B27,B30:B40) -> 10.6 | AB22: =MAX(C6:C15,C18:C27,C30:C40) -> 13.9 | AC22: =MIN(E6:E15,E18:E27,E30:E40) -> -15 | AE22: =MAX(I6:I15,I18:I27,I30:I40) -> 13.2
A23: 16. | B23: -2.7 | C23: -1.8 | D23: -3.6 | E23: -3.9 | F23: 91 | G23: 93 | H23: 8 | I23: 0 | L23: 0 | M23: 1009.6 | N23: -3.6 | O23: 1 | P23: 5 | Q23: * | V23: 3 | AA23: Min TT | AB23: Min TnTn | AC23: Min U14 | AE23: Max SS
A24: 17. | B24: -3.2 | C24: -1.9 | D24: -4.2 | E24: -4.4 | F24: 87 | G24: 93 | H24: 7.8 | I24: 0.1 | J24: * | L24: 0 | M24: 1013.8 | N24: -4.2 | O24: 1 | P24: 5 | Q24: * | R24: 1 | V24: 3 | AA24: =MIN(B6:B15,B18:B27,B30:B40) -> -9.5 | AB24: =MIN(D6:D15,D18:D27,D30:D40) -> -13.4 | AC24: =MIN(F6:F15,F18:F27,F30:F40) -> 48 | AE24: =MAX(P6:P15,P18:P27,P30:P40) -> 8
A25: 18. | B25: -4.9 | C25: -2.5 | D25: -6.3 | E25: -6.1 | F25: 86 | G25: 89 | H25: 7.6 | I25: 0 | L25: 0 | M25: 1013 | N25: -6.4 | O25: 2 | P25: 5 | Q25: * | V25: 4
A26: 19. | B26: -6.6 | C26: -5.7 | D26: -7.2 | E26: -7.2 | F26: 85 | G26: 89 | H26: 7.5 | I26: 0 | L26: 0 | M26: 1004.5 | N26: -8.1 | O26: 1 | P26: 5 | Q26: * | V26: 3
A27: 20. | B27: -5.2 | C27: -3.2 | D27: -6.9 | E27: -6.7 | F27: 85 | G27: 89 | H27: 7.6 | I27: 0 | L27: 0 | M27: 1001.9 | N27: -6.8 | O27: 1 | P27: 5 | Q27: * | V27: 3
A28: Su | B28: =SUM(B18:B27) -> -37.9 | C28: =SUM(C18:C27) -> -21.9 | D28: =SUM(D18:D27) -> -53.9 | E28: XXXX | F28: XXX | G28: =SUM(G18:G27) -> 904 | H28: =SUM(H18:H27) -> 76.8 | I28: =SUM(I18:I27) -> 1 | J28: =SUM(K18:K27) -> 0 | L28: =SUM(L18:L27) -> 2 | M28: =SUM(M18:M27) -> 10120.5 | N28: =SUM(N18:N27) -> -51.2 | O28: XXX | P28: =COUNT(P18:P27) -> 10 | Q28: X | R28: =SUM(R18:R27) -> 3 | S28: =SUM(S18:S27) -> 0 | T28: =SUM(T18:T27) -> 0 | U28: =SUM(U18:U27) -> 0 | V28: XXX
A29: Mi | B29: =AVERAGE(B28/10) -> -3.79 | C29: =AVERAGE(C28/10) -> -2.19 | D29: =AVERAGE(D28/10) -> -5.39 | E29: XXXX | F29: XXX | G29: =AVERAGE(G28/10) -> 90.4 | H29: =AVERAGE(H28/10) -> 7.68 | I29: XXXXX | J29: XX | L29: XXXX | M29: =AVERAGE(M28/10) -> 1012.05 | N29: =AVERAGE(N28/10) -> -5.12 | O29: XXX | P29: XXX | Q29: X | R29: XX | S29: XX | T29: XX | U29: XX | V29: XXX
A30: 21. | B30: -6.1 | C30: -4.8 | D30: -7.7 | E30: -7.2 | F30: 87 | G30: 91 | H30: 7.7 | I30: 2.8 | J30: * | L30: 0 | M30: 1001.9 | N30: -7.3 | O30: 1 | P30: 7 | Q30: * | R30: 1 | V30: 2
A31: 22. | B31: -7.7 | C31: -6.2 | D31: -9 | E31: -8.3 | F31: 82 | G31: 88 | H31: 7.3 | I31: 0 | L31: 0 | M31: 1008 | N31: -9.4 | O31: 1 | P31: 7 | Q31: * | V31: 2
A32: 23. | B32: -6.3 | C32: -4.2 | D32: -7.7 | E32: -7.3 | F32: 81 | G32: 88 | H32: 7.5 | I32: 0 | L32: 0 | M32: 1010.8 | N32: -7.9 | O32: 0 | P32: 7 | Q32: * | V32: 1
A33: 24. | B33: -5.9 | C33: -4.1 | D33: -6.8 | E33: -6.7 | F33: 81 | G33: 89 | H33: 7.7 | I33: 0.7 | L33: 0 | M33: 1014.2 | N33: -7.5 | O33: 1 | P33: 8 | Q33: * | R33: 1 | V33: 2
A34: 25. | B34: -8.2 | C34: -5.7 | D34: -13.4 | E34: -15 | F34: 83 | G34: 89 | H34: 7.5 | I34: 0 | L34: 0.7 | M34: 1021.5 | N34: -9.6 | O34: 1 | P34: 8 | Q34: * | V34: 2
A35: 26. | B35: -9.5 | C35: -5.8 | D35: -13.1 | E35: -14.5 | F35: 79 | G35: 88 | H35: 7.4 | I35: 0 | L35: 1.8 | M35: 1016.9 | N35: -11.2 | O35: 0 | P35: 8 | Q35: * | V35: 3
A36: 27. | B36: -2.3 | C36: 0.9 | D36: -8.9 | E36: -10 | F36: 82 | G36: 88 | H36: 7.3 | I36: 0.6 | J36: R | L36: 0 | M36: 1010.6 | N36: -4.2 | O36: 0 | P36: 7 | Q36: * | R36: 1 | V36: 3
A37: 28. | B37: 1 | C37: 5.2 | D37: -1.4 | E37: -3.9 | F37: 78 | G37: 91 | H37: 7.5 | I37: 5.4 | J37: R | L37: 1 | M37: 1013.5 | N37: -0.3 | O37: 0 | P37: 4 | Q37: D | R37: 1 | V37: 3
A38: 29. | B38: 5.8 | C38: 8.1 | D38: 0.6 | E38: -1.7 | F38: 74 | G38: 85 | H38: 7.1 | I38: 6.4 | J38: R | L38: 0 | M38: 1011.3 | N38: 3.4 | O38: 2 | P38: 1 | Q38: R | R38: 1 | V38: 5
A39: 30. | B39: 10.6 | C39: 13.9 | D39: 6.7 | E39: 5 | F39: 72 | G39: 83 | H39: 6.9 | I39: 11 | J39: R | L39: 0 | M39: 1006.6 | N39: 7.7 | O39: 2 | P39: 0 | R39: 1 | V39: 5
A40: 31. | B40: 6.5 | C40: 9.2 | D40: 2.4 | E40: 1.1 | F40: 48 | G40: 72 | H40: 6.3 | I40: 4.8 | J40: R;H | L40: 0.7 | M40: 1009.2 | N40: 1.8 | O40: 2 | P40: 0 | R40: 1 | S40: 1 | V40: 5
A41: Su | B41: =SUM(B30:B40) -> -22.1 | C41: 2 | D41: =SUM(D30:D40) -> -58.3 | E41: XXXX | F41: XXX | G41: =SUM(G30:G40) -> 952 | H41: =SUM(H30:H40) -> 80.2 | I41: =SUM(I30:I40) -> 31.7 | J41: =SUM(K30:K40) -> 0 | L41: 4.2 | M41: 11124.5 | N41: =SUM(N30:N40) -> -44.5 | O41: XXX | P41: =COUNT(P30:P40) -> 11 | Q41: X | R41: =SUM(R30:R40) -> 7 | S41: =SUM(S30:S40) -> 1 | T41: =SUM(T30:T40) -> 0 | U41: =SUM(U30:U40) -> 0 | V41: XXX
A42: Mi | B42: =AVERAGE(B41/11) -> -2.009090909 | C42: =AVERAGE(C41/11) -> 0.1818181818 | D42: =AVERAGE(D41/11) -> -5.3 | E42: XXXX | F42: XXX | G42: =AVERAGE(G41/11) -> 86.54545455 | H42: =AVERAGE(H41/11) -> 7.290909091 | I42: XXXXX | J42: XX | L42: XXXX | M42: =AVERAGE(M41/11) -> 1011.318182 | N42: =AVERAGE(N41/11) -> -4.045454545 | O42: XXX | P42: XXX | Q42: X | R42: XX | S42: XX | T42: XX | U42: XX | V42: XXX
A43: MSu | B43: =SUM(B16+B28+B41) -> -4.4 | C43: =SUM(C16+C28+C41) -> 53.6 | D43: =SUM(D16+D28+D41) -> -74.1 | E43: XXXX | F43: XXX | G43: =SUM(G16+G28+G41) -> 2761 | H43: 231.4 | I43: =SUM(I16+I28+I41) -> 85.3 | J43: =SUM(J16+J28+J41) -> 0 | L43: 8.2 | M43: 31455.1 | N43: -54.9 | O43: XXX | P43: =SUM(P16+P28+P41) -> 31 | Q43: X | R43: =SUM(R16+R28+R41) -> 19 | S43: =SUM(S16+S28+S41) -> 1 | T43: =SUM(T16+T28+T41) -> 0 | U43: =SUM(U16+U28+U41) -> 0 | V43: XXX
A44: MMi | B44: =AVERAGE(B6:B15,B18:B27,B30:B40) -> -0.1419354839 | C44: =AVERAGE(C43/31) -> 1.729032258 | D44: =AVERAGE(D43/31) -> -2.390322581 | E44: XXXX | F44: XXX | G44: =AVERAGE(G43/31) -> 89.06451613 | H44: =AVERAGE(H43/31) -> 7.464516129 | I44: XXXXX | J44: XX | L44: XXXX | M44: =AVERAGE(M43/31) -> 1014.680645 | N44: =AVERAGE(N43/31) -> -1.770967742 | O44: XXX | P44: XXX | Q44: X | R44: XX | S44: XX | T44: XX | U44: XX | V44: XXX
B46: Norm | C46: % v N.- | D46: Abw. | E46: Zahl der Tage | L46: Niederschlag mm | P46: Sonnensch.-dauer Std
B47: wert | C47: wert | D47: K | E47: Max.d.Lufttemp.°C | L47: >/= 0,1 | O47: =SUM(AE7:AE9) -> 19 | P47: ohne Sonne | V47: 23
A48: TTT | B48: 0.2 | C48: XXXX | D48: =SUM(B44-B48) -> -0.3419354839 | E48: Tropentag/Hitzetag | I48: =SUM(AA7:AA9) -> 0 | L48: >/= 1,0 | O48: =SUM(AF7:AF9) -> 14 | P48: 0,1 bis 0,9 | V48: 4
A49: RRR | B49: 45 | C49: =SUM(I43*100/B49) -> 189.5555556 | D49: XXXX | E49: Sommertag | I49: =SUM(AB7:AB9) -> 0 | L49: >/= 3,0 | O49: =SUM(AG7:AG9) -> 11 | P49: >/= 10,0 | V49: =SUM(AC17:AC19) -> 0
A50: sss | B50: 61 | C50: =SUM(L43*100/B50) -> 13.44262295 | D50: XXXX | E50: Eistag | I50: =SUM(AC7:AC9) -> 15 | L50: >/=10,0 | O50: =SUM(AH7:AH9) -> 2 | P50: Schneedecke cm
A51: astr. | D51: XXXX | E51: Min.d.Lufttemp.°C | L51: >/= 20,0 | O51: 0 | P51: >/= 1 | V51: =SUM(AE17:AE19) -> 19
A52: mgl. | B52: 264 | C52: =SUM(L43*100/B52) -> 3.106060606 | D52: XXXX | E52: Frosttag | I52: =SUM(AA12:AA14) -> 18 | L52: Rel. Luftfeuchte 14 Uhr | P52: >/= 3 | V52: =SUM(AF17:AF19) -> 18
A53: sss | D53: XXXX | E53: starker Eistag | I53: =SUM(AB12:AB14) -> 2 | L53: >/=70% | O53: =SUM(AE12:AE14) -> 29 | P53: >/= 10 | V53: =SUM(AG17:AG19) -> 0
L54: </=40% | O54: =SUM(AG12:AG14) -> 0

Sheet Sichtst.
E1: Sichtweitenstatistik
B5: Wetterwarte: Zinnwald | F5: Monat: | G5: Januar | K5: Jahr: | L5: 2013
A7: Dat. | B7: Nebeldauer | C7: Nebel | D7: Dunst | E7: Sicht | F7: Sicht | G7: Sicht | H7: Sicht
B8: in St. u. Min. | E8: mittel | F8: normal | G8: gut | H8: sehr gut
A9: 01. | B9: - | C9: =IF(R9=1,1,"-") -> - | D9: =IF(R9=2,1,"-") -> - | E9: =IF(R9=3,1,"-") -> - | F9: 1 | G9: - | H9: - | N9: =IF(ISNUMBER(B9),B9*24," ") ->  | O9: =IF(ISNUMBER(N9),IF(N9<1,1," ")," ") ->  | P9: =IF(ISNUMBER(N9),IF(N9<8,2," ")," ") ->  | Q9: =IF(ISNUMBER(N9),IF(N9<24,3," ")," ") ->  | R9: =MIN(O9:Q9) -> 0
A10: 02. | B10: - | C10: - | D10: - | E10: - | F10: 1 | G10: - | H10: - | R10: 0
A11: 03. | B11: - | C11: - | D11: - | E11: - | F11: 1 | G11: - | H11: - | R11: 0
A12: 04. | B12: - | C12: - | D12: - | E12: 1 | F12: - | G12: - | H12: - | R12: 0
A13: 05. | B13: - | C13: - | D13: 1 | E13: - | F13: - | G13: - | H13: - | R13: 0
A14: 06. | B14: - | C14: - | D14: 1 | E14: - | F14: - | G14: - | H14: - | R14: 0
A15: 07. | B15: - | C15: - | D15: - | E15: 1 | F15: - | G15: - | H15: - | R15: 0
A16: 08. | B16: - | C16: - | D16: 1 | E16: - | F16: - | G16: - | H16: - | R16: 0
A17: 09. | B17: - | C17: - | D17: - | E17: 1 | F17: - | G17: - | H17: - | R17: 0
A18: 10. | B18: - | C18: - | D18: - | E18: - | F18: 1 | G18: - | H18: - | R18: 0
A19: 11. | B19: - | C19: - | D19: - | E19: 1 | F19: - | G19: - | H19: - | R19: 0
A20: 12. | B20: - | C20: - | D20: - | E20: - | F20: 1 | G20: - | H20: - | R20: 0
A21: 13. | B21: - | C21: - | D21: - | E21: 1 | F21: - | G21: - | H21: - | R21: 0
A22: 14. | B22: - | C22: - | D22: 1 | E22: - | F22: - | G22: - | H22: - | R22: 0
A23: 15. | B23: - | C23: - | D23: - | E23: 1 | F23: - | G23: - | H23: - | R23: 0
A24: 16. | B24: - | C24: - | D24: 1 | E24: - | F24: - | G24: - | H24: - | R24: 0
A25: 17. | B25: - | C25: - | D25: - | E25: 1 | F25: - | G25: - | H25: - | R25: 0
A26: 18. | B26: - | C26: - | D26: - | E26: 1 | F26: - | G26: - | H26: - | R26: 0
A27: 19. | B27: - | C27: - | D27: 1 | E27: - | F27: - | G27: - | H27: - | R27: 0
A28: 20. | B28: - | C28: - | D28: 1 | E28: - | F28: - | G28: - | H28: - | R28: 0
A29: 21. | B29: - | C29: - | D29: 1 | E29: - | F29: - | G29: - | H29: - | R29: 0
A30: 22. | B30: - | C30: - | D30: 1 | E30: - | F30: - | G30: - | H30: - | R30: 0
A31: 23. | B31: - | C31: - | D31: 1 | E31: - | F31: - | G31: - | H31: - | R31: 0
A32: 24. | B32: - | C32: - | D32: 1 | E32: - | F32: - | G32: - | H32: - | R32: 0
A33: 25. | B33: - | C33: - | D33: 1 | E33: - | F33: - | G33: - | H33: - | R33: 0
A34: 26. | B34: - | C34: - | D34: 1 | E34: - | F34: - | G34: - | H34: - | R34: 0
A35: 27. | B35: - | C35: - | D35: 1 | E35: - | F35: - | G35: - | H35: - | R35: 0
A36: 28. | B36: - | C36: =IF(R36=1,1,"-") -> - | D36: - | E36: 1 | F36: - | G36: - | H36: - | N36: =IF(ISNUMBER(B36),B36*24," ") ->  | O36: =IF(ISNUMBER(N36),IF(N36<1,1," ")," ") ->  | P36: =IF(ISNUMBER(N36),IF(N36<8,2," ")," ") ->  | Q36: =IF(ISNUMBER(N36),IF(N36<24,3," ")," ") ->  | R36: =MIN(O36:Q36) -> 0
A37: 29. | B37: - | C37: =IF(R37=1,1,"-") -> - | D37: =IF(R37=2,1,"-") -> - | E37: - | F37: 1 | G37: - | H37: - | N37: =IF(ISNUMBER(B37),B37*24," ") ->  | O37: =IF(ISNUMBER(N37),IF(N37<1,1," ")," ") ->  | P37: =IF(ISNUMBER(N37),IF(N37<8,2," ")," ") ->  | Q37: =IF(ISNUMBER(N37),IF(N37<24,3," ")," ") ->  | R37: =MIN(O37:Q37) -> 0
A38: 30. | B38: - | C38: =IF(R38=1,1,"-") -> - | D38: =IF(R38=2,1,"-") -> - | E38: - | F38: 1 | G38: - | H38: - | N38: =IF(ISNUMBER(B38),B38*24," ") ->  | O38: =IF(ISNUMBER(N38),IF(N38<1,1," ")," ") ->  | P38: =IF(ISNUMBER(N38),IF(N38<8,2," ")," ") ->  | Q38: =IF(ISNUMBER(N38),IF(N38<24,3," ")," ") ->  | R38: =MIN(O38:Q38) -> 0
A39: 31. | C39: =IF(R39=1,1,"-") -> - | D39: =IF(R39=2,1,"-") -> - | E39: =IF(R39=3,1,"-") -> - | F39: - | G39: 1 | H39: - | N39: =IF(ISNUMBER(B39),B39*24," ") ->  | O39: =IF(ISNUMBER(N39),IF(N39<1,1," ")," ") ->  | P39: =IF(ISNUMBER(N39),IF(N39<8,2," ")," ") ->  | Q39: =IF(ISNUMBER(N39),IF(N39<24,3," ")," ") ->  | R39: =MIN(O39:Q39) -> 0
A40: Su. | B40: XXXXXXXXX | C40: =SUM(C9:C39) -> 0 | D40: 14 | E40: 9 | F40: 7 | G40: 1 | H40: 0
B42: Anzahl der Nebeltage : | E42: =SUM(C40) -> 0
B43: Anzahl der Tage Sicht >= 50 km : | E43: =SUM(G40,H40) -> 1

Sheet Monatsdiagramm
A1: Klimadiagramm | C1: Wetterstation Köttewitz | I1: (213 m ü. NHN)
A3: Januar 2013
C5: aktuell | D5: langj. Mittel | E5: Abw. vom lj. Mittel
B6: höchste Temperatur (°C): | C6: =MAX('Daten für Diagr.'!C2:C32) -> 13.9 | D6: am | E6: 2013-01-04
B7: mittlere Temperatur (°C): | C7: =Kurztab.!B44 -> -0.1419354839 | D7: =Kurztab.!B48 -> 0.2 | E7: =C7-D7 -> -0.3419354839 | F7: K
B8: tiefste Temperatur (°C): | C8: =MIN('Daten für Diagr.'!D2:D32) -> -13.4 | D8: am | E8: 2013-01-19
B9: Niederschlagshöhe (mm): | C9: =Kurztab.!I43 -> 85.3 | D9: =Kurztab.!B49 -> 45 | E9: =100/D9*C9 -> 189.5555556 | F9: %
B10: Sonnenscheindauer (Std.): | C10: =Kurztab.!L43 -> 8.2 | D10: =Kurztab.!B50 -> 61 | E10: =100/D10*C10 -> 13.44262295 | F10: %

Sheet Daten für Diagr.
B1: Td | C1: Tmax | D1: Tmin | E1: RR | F1: Schnee | G1: Sonne | H1: Luftdr. | I1: MWT | J1: GWL | K1: Name | L1: Sonstiges
A2: 2013-01-01 | B2: 4.6 | C2: 7.5 | D2: 1.8 | G2: 0 | H2: 1008.7 | I2: 0.35
A3: 2013-01-02 | B3: 4.3 | C3: 7.2 | D3: 2.3 | E3: 1.6 | G3: 0.5 | H3: 1020.2 | I3: 0.35 | J3: Wa | K3: H Xerxes
A4: 2013-01-03 | B4: 6.6 | C4: 9.2 | D4: 4 | E4: 4.4 | G4: 0 | H4: 1026.3 | I4: 0.3
A5: 2013-01-04 | B5: 8.6 | C5: 9.6 | D5: 7.4 | E5: 13.2 | G5: 0.5 | H5: 1027 | I5: 0.3
A6: 2013-01-05 | B6: 6.7 | C6: 8.4 | D6: 5.1 | E6: 6.4 | G6: 0 | H6: 1026 | I6: 0.25
A7: 2013-01-06 | B7: 5.9 | C7: 6.8 | D7: 5 | E7: 9.8 | G7: 0 | H7: 1024 | I7: 0.25 | J7: HM
A8: 2013-01-07 | B8: 4.8 | C8: 6.8 | D8: 3.8 | E8: 4.8 | G8: 0 | H8: 1026.6 | I8: 0.2
A9: 2013-01-08 | B9: 5.1 | C9: 6 | D9: 3.9 | E9: 6 | G9: 0 | H9: 1023.7 | I9: 0.2
A10: 2013-01-09 | B10: 5.7 | C10: 7 | D10: 4.6 | E10: 3.8 | G10: 0 | H10: 1018.9 | I10: 0.15
A11: 2013-01-10 | B11: 3.3 | C11: 5 | D11: 0.2 | E11: 2.6 | G11: 1 | H11: 1008.6 | I11: 0.15
A12: 2013-01-11 | B12: -1.6 | C12: 0.2 | D12: -2.3 | E12: 0.3 | F12: 0 | G12: 0 | H12: 1012.7 | I12: 0.1 | J12: HFz | K12: H Annegret
A13: 2013-01-12 | B13: -2.3 | C13: -1.4 | D13: -3.5 | E13: 0.6 | F13: 4 | G13: 0 | H13: 1018.3 | I13: 0.1
A14: 2013-01-13 | B14: -4.2 | C14: -2.3 | D14: -5.9 | F14: 5 | G14: 2 | H14: 1019.8 | I14: 0.05
A15: 2013-01-14 | B15: -3.5 | C15: -1.6 | D15: -6.8 | F15: 5 | G15: 0 | H15: 1015.9 | I15: 0.05
A16: 2013-01-15 | B16: -3.7 | C16: -1.7 | D16: -7.2 | F16: 5 | G16: 0 | H16: 1011 | I16: 0 | J16: HNFz | K16: H Bianca
A17: 2013-01-16 | B17: -2.7 | C17: -1.8 | D17: -3.6 | F17: 5 | G17: 0 | H17: 1009.6 | I17: 0
A18: 2013-01-17 | B18: -3.2 | C18: -1.9 | D18: -4.2 | E18: 0.1 | F18: 5 | G18: 0 | H18: 1013.8 | I18: 0.05
A19: 2013-01-18 | B19: -4.9 | C19: -2.5 | D19: -6.3 | F19: 5 | G19: 0 | H19: 1013 | I19: 0.05
A20: 2013-01-19 | B20: -6.6 | C20: -5.7 | D20: -7.2 | F20: 5 | G20: 0 | H20: 1004.5 | I20: 0.1
A21: 2013-01-20 | B21: -5.2 | C21: -3.2 | D21: -6.9 | F21: 5 | G21: 0 | H21: 1001.9 | I21: 0.1 | K21: H Camelia
A22: 2013-01-21 | B22: -6.1 | C22: -4.8 | D22: -7.7 | E22: 2.8 | F22: 7 | G22: 0 | H22: 1001.9 | I22: 0.15 | J22: NEa
A23: 2013-01-22 | B23: -7.7 | C23: -6.2 | D23: -9 | F23: 7 | G23: 0 | H23: 1008 | I23: 0.15
A24: 2013-01-23 | B24: -6.3 | C24: -4.2 | D24: -7.7 | F24: 7 | G24: 0 | H24: 1010.8 | I24: 0.2
A25: 2013-01-24 | B25: -5.9 | C25: -4.1 | D25: -6.8 | E25: 0.7 | F25: 8 | G25: 0 | H25: 1014.2 | I25: 0.25
A26: 2013-01-25 | B26: -8.2 | C26: -5.7 | D26: -13.4 | F26: 8 | G26: 0.7 | H26: 1021.5 | I26: 0.25
A27: 2013-01-26 | B27: -9.5 | C27: -5.8 | D27: -13.1 | F27: 8 | G27: 1.8 | H27: 1016.9 | I27: 0.3
A28: 2013-01-27 | B28: -2.3 | C28: 0.9 | D28: -8.9 | E28: 0.6 | F28: 7 | G28: 0 | H28: 1010.6 | I28: 0.3
A29: 2013-01-28 | B29: 1 | C29: 5.2 | D29: -1.4 | E29: 5.4 | F29: 4 | G29: 1 | H29: 1013.5 | I29: 0.35
A30: 2013-01-29 | B30: 5.8 | C30: 8.1 | D30: 0.6 | E30: 6.4 | F30: 1 | G30: 0 | H30: 1011.3 | I30: 0.4
A31: 2013-01-30 | B31: 10.6 | C31: 13.9 | D31: 6.7 | E31: 11 | F31: 0 | G31: 0 | H31: 1006.6 | I31: 0.4
A32: 2013-01-31 | B32: 6.5 | C32: 9.2 | D32: 2.4 | E32: 4.8 | G32: 0.7 | H32: 1009.2 | I32: 0.45
A33: Durchschnitt | B33: =AVERAGE(B2:B32) -> -0.1419354839 | C33: =AVERAGE(C2:C32) -> 1.874193548 | D33: -2.390322581 | H33: =AVERAGE(H2:H32) -> 1014.677419 | I33: =AVERAGE(I2:I32) -> 0.2032258065
A34: Mittel | B34: 0.2 | E34: 45 | F34: - | G34: 61 | H34: 1018.3
